[Event "FINAL CAMPEONATO ABSOLUTO DE AJEDREZ CHILE 2018"]
[Site "CENTRO CULTURAL LO PRADO, Chile"]
[Date "2018.02.24"]
[Round "1.1"]
[White "HENRIQUEZ VILLAGRA, Cristobal"]
[Black "LLORENS SEPULVEDA, Marcelo"]
[Result "1-0"]
[TimeControl "90 minutos mas 30 segundos de incremento por movida"]
[WhiteTitle "GM"]
[BlackTitle "FM"]
[WhiteElo "2501"]
[BlackElo "2266"]

1. e4 {[%clk 01:30:57]} {[%emt 00:00:02]} c5 {[%clk 01:30:27]} {[%emt
00:00:33]} 2. Nf3 {[%clk 01:31:22]} {[%emt 00:00:06]} Nc6 {[%clk 01:30:44]}
{[%emt 00:00:13]} 3. Bb5 {[%clk 01:31:47]} {[%emt 00:00:05]} g6 {[%clk
01:29:57]} {[%emt 00:01:17]} 4. Bxc6 {[%clk 01:27:34]} {[%emt 00:04:44]} bxc6
{[%clk 01:29:28]} {[%emt 00:00:59]} 5. O-O {[%clk 01:26:55]} {[%emt 00:01:09]}
Bg7 {[%clk 01:29:42]} {[%emt 00:00:16]} 6. Re1 {[%clk 01:26:56]} {[%emt
00:00:29]} Nh6 {[%clk 01:30:02]} {[%emt 00:00:09]} 7. c3 {[%clk 01:27:15]}
{[%emt 00:00:12]} O-O {[%clk 01:30:23]} {[%emt 00:00:08]} 8. d4 {[%clk
01:27:40]} {[%emt 00:00:05]} cxd4 {[%clk 01:30:48]} {[%emt 00:00:04]} 9. cxd4
{[%clk 01:28:07]} {[%emt 00:00:04]} d6 {[%clk 01:31:14]} {[%emt 00:00:04]} 10.
h3 {[%clk 01:27:41]} {[%emt 00:00:56]} Rb8 {[%clk 01:31:36]} {[%emt 00:00:08]}
11. Nc3 {[%clk 01:25:00]} {[%emt 00:03:11]} f5 {[%clk 01:31:25]} {[%emt
00:00:40]} 12. e5 {[%clk 01:21:27]} {[%emt 00:04:03]} Nf7 {[%clk 01:30:21]}
{[%emt 00:01:34]} 13. e6 {[%clk 01:06:10]} {[%emt 00:15:48]} Nh8 {[%clk
01:22:51]} {[%emt 00:08:00]} 14. Qc2 {[%clk 01:02:53]} {[%emt 00:03:48]} h6
{[%clk 01:18:59]} {[%emt 00:04:21]} 15. h4 {[%clk 01:03:16]} {[%emt 00:00:07]}
Qa5 {[%clk 01:15:20]} {[%emt 00:04:08]} 16. Bf4 {[%clk 00:43:02]} {[%emt
00:20:45]} Qb4 {[%clk 00:56:54]} {[%emt 00:18:56]} 17. Qd2 {[%clk 00:41:55]}
{[%emt 00:01:37]} Qxb2 {[%clk 00:49:59]} {[%emt 00:07:24]} 18. Qe3 {[%clk
00:41:47]} {[%emt 00:00:39]} Ba6 {[%clk 00:37:55]} {[%emt 00:12:34]} 19. Bxd6
{[%clk 00:31:55]} {[%emt 00:10:22]} Rbe8 {[%clk 00:17:51]} {[%emt 00:20:33]} 20.
Bf4 {[%clk 00:29:36]} {[%emt 00:02:49]} Kh7 {[%clk 00:14:36]} {[%emt 00:03:45]}
21. Na4 {[%clk 00:28:42]} {[%emt 00:01:24]} Qb4 {[%clk 00:13:21]} {[%emt
00:01:44]} 22. Nc5 {[%clk 00:28:57]} {[%emt 00:00:16]} Bc4 {[%clk 00:13:14]}
{[%emt 00:00:37]} 23. Nd7 {[%clk 00:27:42]} {[%emt 00:01:46]} Bd5 {[%clk
00:12:45]} {[%emt 00:00:59]} 24. Nxf8 {[%clk 00:27:19]} {[%emt 00:00:53]} Rxf8
{[%clk 00:13:10]} {[%emt 00:00:05]} 25. Rab1 {[%clk 00:26:53]} {[%emt
00:00:56]} Qa5 {[%clk 00:13:20]} {[%emt 00:00:20]} 26. Rb7 {[%clk 00:23:41]}
{[%emt 00:03:42]} Re8 {[%clk 00:13:08]} {[%emt 00:00:41]} 27. Be5 {[%clk
00:23:29]} {[%emt 00:00:43]} c5 {[%clk 00:09:50]} {[%emt 00:03:48]} 28. Bxg7
{[%clk 00:23:44]} {[%emt 00:00:14]} 1-0

[Event "FINAL CAMPEONATO ABSOLUTO DE AJEDREZ CHILE 2018"]
[Site "CENTRO CULTURAL LO PRADO, Chile"]
[Date "2018.02.24"]
[Round "1.2"]
[White "LOPEZ SILVA, Hugo Andres"]
[Black "SALINAS HERRERA, Pablo Patrici"]
[Result "0-1"]
[TimeControl "90 minutos mas 30 segundos de incremento por movida"]
[BlackTitle "IM"]
[WhiteElo "2389"]
[BlackElo "2453"]

1. Nf3 {[%clk 01:30:35]} {[%emt 00:00:24]} d5 {[%clk 01:27:15]} {[%emt
00:03:46]} 2. g3 {[%clk 01:28:16]} {[%emt 00:02:49]} Bg4 {[%clk 01:26:21]}
{[%emt 00:01:24]} 3. Bg2 {[%clk 01:28:41]} {[%emt 00:00:05]} e6 {[%clk
01:26:38]} {[%emt 00:00:13]} 4. O-O {[%clk 01:22:25]} {[%emt 00:06:46]} Nf6
{[%clk 01:27:04]} {[%emt 00:00:04]} 5. d3 {[%clk 01:18:49]} {[%emt 00:04:06]}
Be7 {[%clk 01:27:19]} {[%emt 00:00:15]} 6. c4 {[%clk 01:14:08]} {[%emt
00:05:11]} c6 {[%clk 01:27:15]} {[%emt 00:00:34]} 7. Be3 {[%clk 01:11:18]}
{[%emt 00:03:19]} dxc4 {[%clk 01:27:26]} {[%emt 00:00:19]} 8. dxc4 {[%clk
01:10:46]} {[%emt 00:01:02]} Nbd7 {[%clk 01:27:48]} {[%emt 00:00:08]} 9. Nc3
{[%clk 01:08:02]} {[%emt 00:03:13]} O-O {[%clk 01:26:42]} {[%emt 00:01:36]} 10.
h3 {[%clk 01:00:24]} {[%emt 00:08:07]} Bh5 {[%clk 01:24:40]} {[%emt 00:02:33]}
11. g4 {[%clk 00:52:40]} {[%emt 00:08:15]} Bg6 {[%clk 01:25:04]} {[%emt
00:00:06]} 12. Nh4 {[%clk 00:53:03]} {[%emt 00:00:06]} Qc7 {[%clk 01:22:00]}
{[%emt 00:03:34]} 13. Nxg6 {[%clk 00:39:20]} {[%emt 00:14:13]} hxg6 {[%clk
01:22:25]} {[%emt 00:00:05]} 14. b3 {[%clk 00:37:30]} {[%emt 00:02:21]} e5
{[%clk 01:15:37]} {[%emt 00:07:18]} 15. Qc2 {[%clk 00:31:53]} {[%emt 00:06:07]}
Nh7 {[%clk 01:14:00]} {[%emt 00:02:06]} 16. Rad1 {[%clk 00:32:04]} {[%emt
00:00:19]} f5 {[%clk 01:13:13]} {[%emt 00:01:17]} 17. f4 {[%clk 00:24:41]}
{[%emt 00:07:52]} e4 {[%clk 01:08:14]} {[%emt 00:05:29]} 18. Nxe4 {[%clk
00:18:19]} {[%emt 00:06:53]} fxe4 {[%clk 01:08:26]} {[%emt 00:00:18]} 19. Bxe4
{[%clk 00:18:47]} {[%emt 00:00:02]} Rf6 {[%clk 01:05:01]} {[%emt 00:03:54]} 20.
Bxg6 {[%clk 00:18:22]} {[%emt 00:00:55]} Nhf8 {[%clk 01:03:56]} {[%emt
00:01:35]} 21. Bf5 {[%clk 00:16:31]} {[%emt 00:02:21]} g6 {[%clk 00:57:46]}
{[%emt 00:06:41]} 22. Bxd7 {[%clk 00:05:52]} {[%emt 00:11:09]} Nxd7 {[%clk
00:58:06]} {[%emt 00:00:10]} 23. Bd4 {[%clk 00:04:07]} {[%emt 00:02:16]} Bc5
{[%clk 00:57:23]} {[%emt 00:01:12]} 24. Kg2 {[%clk 00:01:37]} {[%emt 00:02:59]}
Bxd4 {[%clk 00:57:17]} {[%emt 00:00:37]} 25. Rxd4 {[%clk 00:02:06]} Nf8 {[%clk
00:57:34]} {[%emt 00:00:13]} 26. e3 {[%clk 00:00:38]} {[%emt 00:01:58]} Re8
{[%clk 00:57:57]} {[%emt 00:00:06]} 27. Qd3 {[%clk 00:00:33]} {[%emt 00:00:36]}
Qe7 {[%clk 00:55:58]} {[%emt 00:02:29]} 28. e4 {[%clk 00:00:33]} {[%emt
00:00:30]} c5 {[%clk 00:54:03]} {[%emt 00:02:25]} 29. Rd5 {[%clk 00:00:31]}
{[%emt 00:00:33]} Qxe4+ {[%clk 00:54:22]} {[%emt 00:00:11]} 30. Qxe4 {[%clk
00:01:00]} {[%emt 00:00:01]} Rxe4 {[%clk 00:54:44]} {[%emt 00:00:08]} 31. f5
{[%clk 00:00:33]} {[%emt 00:00:57]} gxf5 {[%clk 00:53:53]} {[%emt 00:01:21]} 32.
Rxc5 {[%clk 00:00:32]} {[%emt 00:00:31]} f4 {[%clk 00:54:15]} {[%emt 00:00:07]}
33. g5 {[%clk 00:00:42]} {[%emt 00:00:21]} Rf7 {[%clk 00:52:33]} {[%emt
00:02:12]} 34. h4 {[%clk 00:01:06]} {[%emt 00:00:06]} Ne6 {[%clk 00:52:26]}
{[%emt 00:00:37]} 35. Rd5 {[%clk 00:01:02]} {[%emt 00:00:34]} f3+ {[%clk
00:47:11]} {[%emt 00:05:45]} 36. Kg3 {[%clk 00:01:31]} Nd4 {[%clk 00:47:27]}
{[%emt 00:00:14]} 37. g6 {[%clk 00:00:32]} {[%emt 00:01:29]} Rff4 {[%clk
00:47:34]} {[%emt 00:00:23]} 38. Rd8+ {[%clk 00:01:02]} {[%emt 00:00:30]} Kg7
{[%clk 00:48:28]} {[%emt 00:00:07]} 39. Rd7+ {[%clk 00:01:01]} {[%emt
00:00:32]} Kh6 {[%clk 00:48:08]} {[%emt 00:00:49]} 40. g7 {[%clk 00:00:47]}
{[%emt 00:00:44]} Nf5+ {[%clk 00:48:08]} {[%emt 00:00:30]} 0-1

[Event "FINAL CAMPEONATO ABSOLUTO DE AJEDREZ CHILE 2018"]
[Site "CENTRO CULTURAL LO PRADO, Chile"]
[Date "2018.02.24"]
[Round "1.3"]
[White "PEREZ GORMAZ, Matias"]
[Black "VERGARA JOFRE, Felipe Andres"]
[Result "1/2-1/2"]
[TimeControl "90 minutos mas 30 segundos de incremento por movida"]
[WhiteTitle "FM"]
[BlackTitle "FM"]
[WhiteElo "2410"]
[BlackElo "2270"]

1. Nf3 {[%clk 01:30:23]} {[%emt 00:00:36]} Nf6 {[%clk 01:28:42]} {[%emt
00:02:19]} 2. c4 {[%clk 01:30:42]} {[%emt 00:00:11]} e6 {[%clk 01:27:59]}
{[%emt 00:01:13]} 3. g3 {[%clk 01:31:05]} {[%emt 00:00:06]} b6 {[%clk
01:24:56]} {[%emt 00:03:34]} 4. Bg2 {[%clk 01:31:21]} {[%emt 00:00:14]} Bb7
{[%clk 01:25:19]} {[%emt 00:00:08]} 5. O-O {[%clk 01:31:45]} {[%emt 00:00:05]}
Be7 {[%clk 01:25:37]} {[%emt 00:00:12]} 6. d4 {[%clk 01:32:03]} {[%emt
00:00:11]} O-O {[%clk 01:24:52]} {[%emt 00:01:16]} 7. Nc3 {[%clk 01:32:27]}
{[%emt 00:00:05]} Ne4 {[%clk 01:24:03]} {[%emt 00:01:19]} 8. Bd2 {[%clk
01:30:03]} {[%emt 00:02:54]} d5 {[%clk 01:15:29]} {[%emt 00:09:04]} 9. cxd5
{[%clk 01:27:17]} {[%emt 00:03:16]} exd5 {[%clk 01:12:11]} {[%emt 00:03:49]} 10.
Rc1 {[%clk 01:24:14]} {[%emt 00:03:32]} Nd7 {[%clk 01:05:29]} {[%emt 00:07:13]}
11. Bf4 {[%clk 01:22:25]} {[%emt 00:02:18]} c5 {[%clk 00:57:58]} {[%emt
00:08:02]} 12. Bh3 {[%clk 01:00:51]} {[%emt 00:22:03]} Nxc3 {[%clk 00:30:19]}
{[%emt 00:28:10]} 13. Rxc3 {[%clk 01:01:13]} {[%emt 00:00:07]} Nf6 {[%clk
00:30:41]} {[%emt 00:00:09]} 14. b3 {[%clk 00:45:07]} {[%emt 00:16:36]} Ne4
{[%clk 00:28:50]} {[%emt 00:02:21]} 15. Rc2 {[%clk 00:42:37]} {[%emt 00:03:00]}
g5 {[%clk 00:20:05]} {[%emt 00:09:15]} 16. Bc1 {[%clk 00:39:38]} {[%emt
00:03:28]} f5 {[%clk 00:20:23]} {[%emt 00:00:13]} 17. Bg2 {[%clk 00:39:51]}
{[%emt 00:00:16]} Bf6 {[%clk 00:16:50]} {[%emt 00:04:03]} 18. Bb2 {[%clk
00:30:29]} {[%emt 00:09:52]} Rc8 {[%clk 00:15:43]} {[%emt 00:01:38]} 19. Qc1
{[%clk 00:27:27]} {[%emt 00:03:31]} g4 {[%clk 00:13:09]} {[%emt 00:03:05]} 20.
Ne5 {[%clk 00:27:48]} {[%emt 00:00:08]} Bg5 {[%clk 00:09:04]} {[%emt 00:04:34]}
21. Qa1 {[%clk 00:22:24]} {[%emt 00:05:54]} Qe8 {[%clk 00:07:48]} {[%emt
00:01:47]} 22. Bc1 {[%clk 00:14:12]} {[%emt 00:08:42]} Qh5 {[%clk 00:04:43]}
{[%emt 00:03:35]} 23. f3 {[%clk 00:13:03]} {[%emt 00:01:38]} gxf3 {[%clk
00:02:11]} {[%emt 00:03:02]} 24. exf3 {[%clk 00:13:27]} {[%emt 00:00:05]} Bxc1
{[%clk 00:01:30]} {[%emt 00:01:12]} 25. Qxc1 {[%clk 00:13:48]} {[%emt
00:00:09]} cxd4 {[%emt 00:01:16]} 26. fxe4 {[%clk 00:13:20]} {[%emt 00:00:56]}
fxe4 {[%clk 00:00:35]} {[%emt 00:00:41]} 27. Rxc8 {[%clk 00:12:57]} {[%emt
00:00:53]} Rxc8 {[%clk 00:00:39]} {[%emt 00:00:27]} 28. Qf4 {[%clk 00:12:54]}
{[%emt 00:00:32]} Ba6 {[%emt 00:00:40]} 29. g4 {[%clk 00:03:37]} {[%emt
00:09:44]} Qh4 {[%clk 00:01:00]} {[%emt 00:00:02]} 30. Qf5 {[%clk 00:03:10]}
{[%emt 00:00:56]} Qe7 {[%clk 00:00:35]} {[%emt 00:00:56]} 31. Ng6 {[%clk
00:00:40]} {[%emt 00:03:00]} hxg6 {[%clk 00:00:32]} {[%emt 00:00:33]} 32. Qxd5+
{[%clk 00:01:09]} {[%emt 00:00:02]} Kh8 {[%clk 00:00:33]} {[%emt 00:00:30]} 33.
Qxd4 {[%clk 00:01:06]} {[%emt 00:00:32]} Qg7 {[%clk 00:00:52]} {[%emt
00:00:11]} 34. Qxg7 {[%clk 00:00:50]} {[%emt 00:00:46]} Kxg7 {[%emt 00:11:57]}
35. Re1 {[%clk 00:01:18]} Bd3 {[%clk 00:00:35]} 36. Kf2 {[%clk 00:01:46]} Rc2+
{[%clk 00:00:39]} 37. Kg3 {[%clk 00:02:14]} Rxa2 {[%clk 00:00:38]} 38. Bxe4
{[%clk 00:02:42]} Bxe4 {[%clk 00:00:49]} 39. Rxe4 {[%clk 00:03:09]} Rb2 {[%clk
00:00:33]} 40. b4 {[%clk 00:02:23]} Kf6 {[%clk 00:00:33]} 1/2-1/2

[Event "FINAL CAMPEONATO ABSOLUTO DE AJEDREZ CHILE 2018"]
[Site "CENTRO CULTURAL LO PRADO, Chile"]
[Date "2018.02.24"]
[Round "1.4"]
[White "BARRIA ZUNIGA, Daniel"]
[Black "AGUIRRE CONTRERAS, Cristian Ro"]
[Result "1/2-1/2"]
[TimeControl "90 minutos mas 30 segundos de incremento por movida"]
[WhiteTitle "IM"]
[BlackTitle "FM"]
[WhiteFideId "3400816"]
[WhiteElo "2395"]
[BlackElo "2272"]

1. d4 {[%clk 01:30:55]} {[%emt 00:00:03]} Nf6 {[%clk 01:30:51]} {[%emt
00:00:10]} 2. c4 {[%clk 01:31:20]} {[%emt 00:00:05]} e6 {[%clk 01:31:13]}
{[%emt 00:00:08]} 3. Nf3 {[%clk 01:31:46]} {[%emt 00:00:04]} d5 {[%clk
01:31:34]} {[%emt 00:00:10]} 4. Nc3 {[%clk 01:32:10]} {[%emt 00:00:05]} Bb4
{[%clk 01:30:51]} {[%emt 00:01:13]} 5. Qa4+ {[%clk 01:24:55]} {[%emt 00:07:45]}
Nc6 {[%clk 01:31:09]} {[%emt 00:00:14]} 6. Bg5 {[%clk 01:25:03]} {[%emt
00:00:20]} O-O {[%clk 01:22:07]} {[%emt 00:09:33]} 7. e3 {[%clk 01:24:23]}
{[%emt 00:01:09]} h6 {[%clk 01:14:38]} {[%emt 00:08:00]} 8. Bxf6 {[%clk
01:23:10]} {[%emt 00:01:43]} Qxf6 {[%clk 01:13:19]} {[%emt 00:01:49]} 9. Rc1
{[%clk 01:23:04]} {[%emt 00:00:34]} Bd7 {[%clk 00:56:49]} {[%emt 00:17:02]} 10.
Qc2 {[%clk 01:20:02]} {[%emt 00:03:30]} Rfe8 {[%clk 00:46:17]} {[%emt
00:11:03]} 11. a3 {[%clk 01:04:15]} {[%emt 00:16:17]} Bxc3+ {[%clk 00:42:40]}
{[%emt 00:04:08]} 12. Qxc3 {[%clk 00:59:45]} {[%emt 00:04:59]} Rac8 {[%clk
00:42:23]} {[%emt 00:00:47]} 1/2-1/2

[Event "FINAL CAMPEONATO ABSOLUTO DE AJEDREZ CHILE 2018"]
[Site "CENTRO CULTURAL LO PRADO, Chile"]
[Date "2018.02.24"]
[Round "1.5"]
[White "DIAZ VILLAGRAN, Robert"]
[Black "FUENTES PARRA, Victor Ignacio"]
[Result "1-0"]
[TimeControl "90 minutos mas 30 segundos de incremento por movida"]
[WhiteTitle "FM"]
[WhiteElo "2317"]
[BlackElo "2148"]

1. e4 {[%clk 01:28:50]} {[%emt 00:02:09]} e6 {[%clk 01:30:53]} {[%emt
00:00:08]} 2. d3 {[%clk 01:29:20]} {[%emt 00:00:01]} d5 {[%clk 01:31:16]}
{[%emt 00:00:06]} 3. Nd2 {[%clk 01:29:45]} {[%emt 00:00:05]} c5 {[%clk
01:31:30]} {[%emt 00:00:17]} 4. Ngf3 {[%clk 01:29:32]} {[%emt 00:00:43]} Nc6
{[%clk 01:31:44]} {[%emt 00:00:16]} 5. g3 {[%clk 01:29:53]} {[%emt 00:00:09]}
g6 {[%clk 01:31:48]} {[%emt 00:00:26]} 6. Bg2 {[%clk 01:30:13]} {[%emt
00:00:10]} Bg7 {[%clk 01:32:13]} {[%emt 00:00:05]} 7. O-O {[%clk 01:30:27]}
{[%emt 00:00:17]} Nge7 {[%clk 01:32:38]} {[%emt 00:00:05]} 8. Re1 {[%clk
01:30:49]} {[%emt 00:00:08]} h6 {[%clk 01:33:02]} {[%emt 00:00:06]} 9. c3
{[%clk 01:23:05]} {[%emt 00:08:14]} b6 {[%clk 01:33:05]} {[%emt 00:00:26]} 10.
h4 {[%clk 01:22:53]} {[%emt 00:00:42]} a5 {[%clk 01:33:08]} {[%emt 00:00:28]}
11. a4 {[%clk 01:23:04]} {[%emt 00:00:19]} Ra7 {[%clk 01:31:13]} {[%emt
00:02:25]} 12. exd5 {[%clk 01:13:12]} {[%emt 00:10:22]} exd5 {[%clk 01:30:56]}
{[%emt 00:00:46]} 13. Nb3 {[%clk 01:12:35]} {[%emt 00:01:07]} d4 {[%clk
01:15:26]} {[%emt 00:16:01]} 14. cxd4 {[%clk 00:56:39]} {[%emt 00:16:26]} cxd4
{[%clk 01:14:54]} {[%emt 00:01:02]} 15. Bf4 {[%clk 00:56:48]} {[%emt 00:00:21]}
O-O {[%clk 01:12:12]} {[%emt 00:03:11]} 16. Ne5 {[%clk 00:53:51]} {[%emt
00:03:27]} Nxe5 {[%clk 01:07:24]} {[%emt 00:05:19]} 17. Bxe5 {[%clk 00:54:11]}
{[%emt 00:00:10]} Be6 {[%clk 00:55:55]} {[%emt 00:11:58]} 18. Nd2 {[%clk
00:40:40]} {[%emt 00:14:02]} Bxe5 {[%clk 00:36:51]} {[%emt 00:19:34]} 19. Rxe5
{[%clk 00:41:01]} {[%emt 00:00:09]} Qd6 {[%clk 00:36:35]} {[%emt 00:00:45]} 20.
Rb5 {[%clk 00:32:24]} {[%emt 00:09:07]} f5 {[%clk 00:18:02]} {[%emt 00:19:03]}
21. Qe2 {[%clk 00:23:24]} {[%emt 00:09:30]} Bf7 {[%clk 00:10:27]} {[%emt
00:08:05]} 22. Rd1 {[%clk 00:13:14]} {[%emt 00:10:41]} Nc8 {[%clk 00:05:11]}
{[%emt 00:05:46]} 23. Nc4 {[%clk 00:09:02]} {[%emt 00:04:41]} Qd8 {[%clk
00:05:15]} {[%emt 00:00:26]} 24. Qd2 {[%clk 00:07:07]} {[%emt 00:02:25]} Kg7
{[%clk 00:03:56]} {[%emt 00:01:50]} 25. Qf4 {[%clk 00:04:24]} {[%emt 00:03:12]}
Re7 {[%clk 00:02:02]} {[%emt 00:02:25]} 26. Ne5 {[%clk 00:04:44]} {[%emt
00:00:09]} Qd6 {[%clk 00:00:43]} {[%emt 00:01:49]} 27. Rc1 {[%clk 00:03:32]}
{[%emt 00:01:43]} Na7 {[%clk 00:00:49]} {[%emt 00:00:24]} 28. Nc6 {[%clk
00:01:01]} {[%emt 00:03:01]} Qxf4 {[%clk 00:00:44]} {[%emt 00:00:35]} 29. gxf4
{[%clk 00:01:30]} Rc7 {[%clk 00:00:38]} {[%emt 00:00:36]} 30. Rxb6 {[%clk
00:01:04]} {[%emt 00:00:56]} Rfc8 {[%clk 00:00:37]} {[%emt 00:00:30]} 31. Kh2
{[%clk 00:01:34]} Be8 {[%clk 00:00:32]} {[%emt 00:00:37]} 32. Nxa7 {[%clk
00:02:02]} {[%emt 00:00:01]} Rxc1 {[%clk 00:00:55]} {[%emt 00:00:07]} 33. Nxc8
{[%clk 00:02:32]} {[%emt 00:00:01]} Rxc8 {[%clk 00:01:10]} {[%emt 00:00:15]} 34.
Rb7+ {[%clk 00:01:34]} {[%emt 00:01:28]} Kf6 {[%clk 00:01:22]} {[%emt
00:00:17]} 35. Bd5 {[%clk 00:01:56]} {[%emt 00:00:08]} Rc2 {[%clk 00:00:52]}
{[%emt 00:01:01]} 36. Kg3 {[%clk 00:02:19]} {[%emt 00:00:07]} g5 {[%clk
00:00:49]} {[%emt 00:00:33]} 37. Rb6+ {[%clk 00:02:02]} {[%emt 00:00:47]} Kg7
{[%clk 00:01:05]} {[%emt 00:00:13]} 38. fxg5 {[%clk 00:02:13]} hxg5 {[%clk
00:01:05]} 39. hxg5 {[%clk 00:02:13]} Bxa4 {[%clk 00:01:05]} 40. b3 {[%clk
00:02:13]} Be8 {[%clk 00:01:05]} 41. f3 {[%clk 00:02:13]} Rc7 {[%clk 00:01:05]}
42. Kf4 {[%clk 00:02:13]} Rc5 {[%clk 00:01:05]} 43. Rd6 {[%clk 00:02:13]} Bf7
{[%clk 00:01:05]} 44. Bc4 {[%clk 00:02:13]} Bxc4 {[%clk 00:01:05]} 45. bxc4
{[%clk 00:02:13]} Kf7 {[%clk 00:01:05]} 46. Rxd4 {[%clk 00:01:06]} {[%emt
00:09:57]} Ke7 {[%clk 00:01:05]} 47. g6 {[%clk 00:01:06]} Rc8 {[%clk 00:01:05]}
48. Rd5 {[%clk 00:01:06]} Ra8 {[%clk 00:01:05]} 49. Rxf5 {[%clk 00:01:06]} a4
{[%clk 00:01:05]} 50. g7 {[%clk 00:01:06]} a3 {[%clk 00:01:05]} 51. Ra5 {[%clk
00:01:06]} 1-0

[Event "FINAL CAMPEONATO ABSOLUTO DE AJEDREZ CHILE 2018"]
[Site "CENTRO CULTURAL LO PRADO, Chile"]
[Date "2018.02.24"]
[Round "1.6"]
[White "GARCIA CARDENAS, Pablo"]
[Black "ABARCA GONZALEZ, Nicolas"]
[Result "1-0"]
[TimeControl "90 minutos mas 30 segundos de incremento por movida"]
[WhiteTitle "IM"]
[WhiteElo "2454"]
[BlackElo "2388"]

1. d4 {[%clk 01:30:58]} {[%emt 00:00:01]} Nf6 {[%clk 01:30:57]} {[%emt
00:00:04]} 2. Nc3 {[%clk 01:31:21]} {[%emt 00:00:05]} d5 {[%clk 01:29:06]}
{[%emt 00:02:22]} 3. Bg5 {[%clk 01:31:39]} {[%emt 00:00:12]} Nbd7 {[%clk
01:21:34]} {[%emt 00:08:02]} 4. f3 {[%clk 01:22:16]} {[%emt 00:09:53]} c6
{[%clk 01:03:58]} {[%emt 00:18:06]} 5. e4 {[%clk 01:08:57]} {[%emt 00:13:49]}
dxe4 {[%clk 01:03:49]} {[%emt 00:00:39]} 6. fxe4 {[%clk 01:07:21]} {[%emt
00:02:05]} e5 {[%clk 01:02:49]} {[%emt 00:01:31]} 7. dxe5 {[%clk 01:04:28]}
{[%emt 00:03:23]} Nxe5 {[%clk 01:00:59]} {[%emt 00:02:19]} 8. Qxd8+ {[%clk
01:04:42]} {[%emt 00:00:16]} Kxd8 {[%clk 01:01:27]} {[%emt 00:00:02]} 9. Nf3
{[%clk 01:04:50]} {[%emt 00:00:23]} Bd6 {[%clk 01:01:50]} {[%emt 00:00:08]} 10.
O-O-O {[%clk 00:59:58]} {[%emt 00:05:21]} Kc7 {[%clk 01:01:45]} {[%emt
00:00:36]} 11. Nd4 {[%clk 00:55:02]} {[%emt 00:05:26]} a6 {[%clk 00:58:34]}
{[%emt 00:03:41]} 12. Be2 {[%clk 00:44:08]} {[%emt 00:11:24]} Neg4 {[%clk
00:53:08]} {[%emt 00:05:56]} 13. Rdf1 {[%clk 00:33:31]} {[%emt 00:11:07]} Nxh2
{[%clk 00:14:43]} {[%emt 00:38:55]} 14. Bf4 {[%clk 00:26:15]} {[%emt 00:07:45]}
Nxf1 {[%clk 00:07:43]} {[%emt 00:07:32]} 15. e5 {[%clk 00:26:42]} {[%emt
00:00:04]} Bc5 {[%clk 00:08:07]} {[%emt 00:00:06]} 16. exf6+ {[%clk 00:26:58]}
{[%emt 00:00:13]} Kd8 {[%clk 00:08:23]} {[%emt 00:00:14]} 17. Be5 {[%clk
00:18:14]} {[%emt 00:09:14]} Ng3 {[%clk 00:07:58]} {[%emt 00:00:55]} 18. Rd1
{[%clk 00:17:07]} {[%emt 00:01:38]} Nxe2+ {[%clk 00:07:50]} {[%emt 00:00:39]}
19. Ndxe2+ {[%clk 00:17:10]} {[%emt 00:00:27]} Ke8 {[%clk 00:06:36]} {[%emt
00:01:45]} 20. Ne4 {[%clk 00:13:45]} {[%emt 00:03:55]} Be3+ {[%clk 00:06:15]}
{[%emt 00:00:50]} 21. Kb1 {[%clk 00:14:13]} {[%emt 00:00:01]} g6 {[%clk
00:06:22]} {[%emt 00:00:24]} 22. Nd6+ {[%clk 00:10:15]} {[%emt 00:04:28]} Kf8
{[%clk 00:06:49]} {[%emt 00:00:03]} 23. Nc4 {[%clk 00:09:48]} {[%emt 00:00:57]}
Bg4 {[%clk 00:07:11]} {[%emt 00:00:08]} 24. Nxe3 {[%clk 00:10:08]} {[%emt
00:00:10]} Bxe2 {[%clk 00:07:37]} {[%emt 00:00:04]} 25. Rd2 {[%clk 00:10:27]}
{[%emt 00:00:10]} Bh5 {[%clk 00:03:53]} {[%emt 00:04:15]} 26. g4 {[%clk
00:07:38]} {[%emt 00:03:19]} Bxg4 {[%clk 00:04:20]} {[%emt 00:00:03]} 27. Nxg4
{[%clk 00:08:06]} {[%emt 00:00:02]} h5 {[%clk 00:04:43]} {[%emt 00:00:07]} 28.
Bd6+ {[%clk 00:08:23]} {[%emt 00:00:13]} Kg8 {[%clk 00:04:48]} {[%emt
00:00:25]} 29. Ne5 {[%clk 00:08:48]} {[%emt 00:00:05]} Rd8 {[%clk 00:04:48]}
{[%emt 00:00:30]} 30. c4 {[%clk 00:08:53]} {[%emt 00:00:25]} c5 {[%clk
00:05:13]} {[%emt 00:00:05]} 31. b4 {[%clk 00:08:15]} {[%emt 00:01:07]} b6
{[%clk 00:05:25]} {[%emt 00:00:19]} 32. Nc6 {[%clk 00:07:57]} {[%emt 00:00:48]}
Rd7 {[%clk 00:05:49]} {[%emt 00:00:06]} 33. Ne5 {[%clk 00:07:53]} {[%emt
00:00:35]} Rd8 {[%clk 00:06:11]} {[%emt 00:00:08]} 34. bxc5 {[%clk 00:05:55]}
{[%emt 00:02:27]} bxc5 {[%clk 00:06:35]} {[%emt 00:00:05]} 35. Kc2 {[%clk
00:06:23]} {[%emt 00:00:03]} h4 {[%clk 00:06:47]} {[%emt 00:00:18]} 36. Nc6
{[%clk 00:06:21]} {[%emt 00:00:32]} Rd7 {[%clk 00:03:31]} {[%emt 00:03:46]} 37.
Ne7+ {[%clk 00:06:46]} {[%emt 00:00:05]} Kh7 {[%clk 00:03:58]} {[%emt
00:00:04]} 38. Rh2 {[%clk 00:06:18]} {[%emt 00:00:58]} g5 {[%clk 00:04:15]}
{[%emt 00:00:13]} 39. Bf4 {[%clk 00:06:09]} {[%emt 00:00:39]} Rxe7 {[%clk
00:00:46]} {[%emt 00:03:58]} 40. fxe7 {[%clk 00:06:37]} {[%emt 00:00:01]} Kg6
{[%clk 00:01:13]} {[%emt 00:00:04]} 41. Bd6 {[%clk 00:05:03]} {[%emt 00:11:40]}
f5 {[%clk 00:01:39]} 42. Kd3 {[%clk 00:04:24]} Kf7 {[%clk 00:01:30]} 43. Bxc5
{[%clk 00:04:45]} g4 {[%emt 00:00:01]} 44. Bd6 {[%clk 00:03:58]} f4 45. Bxf4
{[%clk 00:04:18]} Kxe7 {[%clk 00:01:57]} 46. Rxh4 {[%clk 00:04:44]} Rg8 {[%clk
00:00:59]} 47. Bg3 {[%clk 00:04:37]} Kd7 {[%clk 00:01:01]} 48. Kd4 {[%clk
00:04:26]} Kc6 {[%clk 00:01:21]} 49. Rh6+ {[%clk 00:04:50]} Kb7 {[%clk
00:01:50]} 50. c5 {[%clk 00:04:20]} Rf8 {[%clk 00:01:56]} 51. Rb6+ {[%clk
00:04:32]} {[%emt 00:00:11]} Ka7 {[%clk 00:02:21]} {[%emt 00:00:05]} 52. Rg6
{[%clk 00:04:50]} {[%emt 00:00:11]} 1-0